bitfinex-derivatives/quotes_BNBF0:USTF0_20250810
["timestamp","ask_amount","ask_price","bid_price","bid_amount"]
[1754838581169,1.1163852,801.04,800.04,0.5]
[1754838581368,1.1163852,801.05,800.04,0.5]
[1754838582873,1.1163852,801.04,800.04,0.5]
[1754838583374,1.1163852,801.05,800.04,0.5]
[1754838584470,1.1163852,801.06,800.04,0.5]
[1754838585073,1.1163852,801.05,800.04,0.5]
[1754838587471,1.1163852,801.04,800.04,0.5]
[1754838587673,1.1163852,801.03,800.04,0.5]
[1754838587870,1.1163852,801.01,800.04,0.5]
[1754838588174,1.1163852,801.02,800.04,0.5]
[1754838588571,1.1163852,801.03,800.04,0.5]
[1754838589374,0.83477123,800.87,800.04,0.5]
[1754838590075,0.83477123,800.86,800.04,0.5]
[1754838590473,0.83477123,800.87,800.04,0.5]
[1754838595577,0.83477123,800.88,800.04,0.5]
[1754838596680,0.83477123,800.82,800.04,0.5]
[1754838596982,0.83477123,800.79,800.04,0.5]
[1754838597785,0.83477123,800.8,800.04,0.5]
[1754838597983,0.83477123,800.83,800.04,0.5]
[1754838598380,2.8022445,801.82,800.04,0.5]
[1754838598381,0.83477123,800.85,800.04,0.5]
[1754838598785,0.83477123,800.84,800.04,0.5]
[1754838598985,0.83477123,800.85,800.04,0.5]
[1754838600382,0.83477123,800.87,800.04,0.5]
[1754838600584,0.83477123,801.12,800.04,0.5]
[1754838601687,0.83477123,801.11,800.04,0.5]
[1754838601987,0.83477123,801.09,800.04,0.5]
[1754838602184,0.83477123,801.08,800.04,0.5]
[1754838602389,0.83477123,801.09,800.04,0.5]
[1754838602789,0.83477123,801.1,800.04,0.5]
[1754838602987,0.83477123,801.08,800.04,0.5]
[1754838603491,0.83477123,801.07,800.04,0.5]
[1754838604590,0.83477123,801.02,800.04,0.5]
[1754838606093,0.83477123,800.97,800.04,0.5]
[1754838606295,0.83477123,800.96,800.04,0.5]
[1754838606591,0.83477123,800.61,800.04,0.5]
[1754838606791,0.83477123,800.6,799.63,0.5]
[1754838606992,0.83477123,800.56,799.55,0.365]
[1754838607290,0.83477123,800.68,799.66,0.5]
[1754838607594,1.1163852,800.9,799.88,0.333]
[1754838607796,1.1163852,800.88,799.91,0.5]
[1754838608091,1.1163852,800.88,799.49,1.097575]
[1754838608092,1.1163852,800.89,799.88,0.284]
[1754838608293,1.1163852,800.89,799.96,0.286]
[1754838608492,1.1163852,800.89,799.82,0.5]
[1754838608693,1.1163852,800.89,799.85,0.5]
[1754838608896,1.1163852,800.88,799.85,0.5]
[1754838609097,1.1163852,801.06,799.85,0.5]
[1754838609294,1.1163852,801.05,799.85,0.5]
[1754838609696,1.1163852,801.03,799.85,0.5]
[1754838609898,1.1163852,801.02,799.74,0.348]
[1754838610192,1.1163852,801.02,799.37,1.097575]
[1754838610193,1.1163852,801.02,799.72,0.5]
[1754838611297,1.1163852,801.03,799.72,0.5]
[1754838612495,3.8844419,802.61,799.72,0.5]
[1754838612496,1.1163852,801.04,799.72,0.5]
[1754838612699,1.1163852,801.03,799.72,0.5]
[1754838612900,1.1163852,800.87,799.72,0.5]
[1754838613502,1.1163852,800.87,799.6,0.67709566]
[1754838613699,1.1163852,800.86,799.6,0.21709566]
[1754838613900,1.1163852,800.43,799.6,0.21709566]
[1754838614101,1.1163852,800.46,799.6,0.21709566]
[1754838614701,1.1163852,800.48,799.6,0.21709566]
[1754838615803,1.1163852,800.5,799.6,0.21709566]
[1754838616205,1.1163852,800.48,799.6,0.21709566]
[1754838616603,1.1163852,800.47,799.6,0.21709566]
[1754838616801,1.1163852,800.48,799.6,0.21709566]
[1754838617203,1.1163852,800.49,799.6,0.21709566]
[1754838617405,1.1163852,800.53,799.75,0.256]
[1754838617702,1.1163852,800.54,799.61,0.28]
[1754838618008,2.8022445,801.32,799.6,0.21709566]
[1754838618009,1.1163852,800.57,799.6,0.21709566]
[1754838618307,1.1163852,800.65,799.6,0.21709566]
[1754838618805,1.1163852,800.65,799.65,0.28]
[1754838619006,1.1163852,800.65,799.6,0.21709566]
[1754838619403,1.1163852,800.65,799.67,0.28]
[1754838619603,1.1163852,800.65,799.6,0.21709566]
[1754838619804,1.1163852,800.61,799.6,0.21709566]
[1754838620003,1.1163852,800.65,799.69,0.396]
[1754838620206,1.1163852,800.65,799.6,0.21709566]
[1754838621109,1.1163852,800.71,799.72,0.28]
[1754838621409,1.1163852,800.39,799.6,0.21709566]
[1754838621905,1.1163852,800.34,799.6,0.21709566]
[1754838622604,1.1163852,800.35,799.6,0.21709566]
[1754838622805,1.1163852,800.33,799.6,0.21709566]
[1754838623007,1.1163852,800.36,799.6,0.21709566]
[1754838623206,1.1163852,800.31,799.6,0.21709566]
[1754838623805,1.1163852,800.38,799.6,0.21709566]
[1754838624206,1.1163852,800.39,799.6,0.21709566]
[1754838624406,1.1163852,800.4,799.6,0.21709566]
[1754838625209,2.8022445,801.31,799.6,0.21709566]
[1754838625210,1.1163852,800.43,799.6,0.21709566]
[1754838625611,1.1163852,800.44,799.6,0.21709566]
[1754838625908,1.1163852,800.45,799.6,0.21709566]
[1754838626111,1.1163852,800.44,799.6,0.21709566]
[1754838626309,1.1163852,800.45,799.6,0.21709566]
[1754838627314,1.1163852,800.49,799.6,0.21709566]
[1754838627614,1.1163852,800.48,799.6,0.21709566]
[1754838627810,1.1163852,800.52,799.6,0.21709566]
[1754838628311,1.1163852,800.53,799.6,0.21709566]
[1754838628816,1.1163852,800.52,799.6,0.21709566]
[1754838629016,1.1163852,800.5,799.6,0.21709566]
[1754838630218,1.1163852,800.51,799.6,0.21709566]
[1754838630518,1.1163852,800.5,799.6,0.21709566]
[1754838630718,1.1163852,800.47,799.6,0.21709566]
[1754838630914,1.1163852,800.38,799.6,0.21709566]
[1754838631216,5.5492027,802.31,799.6,0.21709566]
[1754838631217,1.1163852,800.36,799.6,0.21709566]
[1754838631418,1.1163852,800.49,799.6,0.21709566]
[1754838631913,1.1163852,800.5,799.6,0.21709566]
[1754838632413,5.5492027,801.8,799.6,0.21709566]
[1754838632414,1.1163852,800.52,799.6,0.21709566]
[1754838632717,1.1163852,800.38,799.6,0.21709566]
[1754838632913,1.1163852,800.35,799.6,0.21709566]
[1754838633118,1.1163852,800.29,799.6,0.21709566]
[1754838633316,1.1163852,800.42,799.6,0.21709566]
[1754838633620,1.1163852,800.39,799.6,0.21709566]
[1754838634419,1.1163852,800.4,799.6,0.21709566]
[1754838634618,1.1163852,800.2,799.6,0.21709566]
[1754838634817,1.1163852,800.17,799.6,0.21709566]
[1754838635619,1.1163852,800.18,799.6,0.21709566]
[1754838636518,1.1163852,800.15,799.6,0.21709566]
[1754838636722,1.1163852,800.29,799.6,0.21709566]
[1754838636924,3.8844419,801.14,799.6,0.21709566]
[1754838636925,1.1163852,800.13,799.6,0.21709566]
[1754838637324,1.1163852,800.15,799.6,0.21709566]
[1754838637824,1.1163852,800.12,799.6,0.21709566]
[1754838638025,1.1163852,800.15,799.6,0.21709566]
[1754838638224,1.1163852,800.17,799.6,0.21709566]
[1754838638423,1.1163852,800.02,799.6,0.21709566]
[1754838638626,1.1163852,800.03,799.6,0.21709566]
[1754838639035,1.1163852,800.02,799.6,0.21709566]
[1754838639227,1.1163852,799.93,799.6,0.21709566]
[1754838639527,1.1163852,799.94,799.6,0.21709566]
[1754838639729,1.1163852,800.03,799.6,0.21709566]
[1754838640126,1.1163852,800.05,799.6,0.21709566]
[1754838640421,1.1163852,800.07,799.6,0.21709566]
[1754838640622,1.1163852,800.06,799.6,0.21709566]
[1754838640823,1.1163852,800.05,799.6,0.21709566]
[1754838641026,1.1163852,800.06,799.6,0.21709566]
[1754838641327,1.1163852,800.2,799.6,0.21709566]
[1754838641528,1.1163852,800.28,799.6,0.21709566]
[1754838641827,1.1163852,800.32,799.6,0.21709566]
[1754838642027,1.1163852,800.42,799.6,0.21709566]
[1754838642227,1.1163852,800.4,799.6,0.21709566]
[1754838642524,1.1163852,800.41,799.6,0.21709566]
[1754838642927,1.1163852,800.43,799.6,0.21709566]
[1754838644727,3.8844419,801.89,799.6,0.21709566]
[1754838644728,1.1163852,800.41,799.6,0.21709566]
[1754838645227,1.1163852,800.4,799.6,0.21709566]
[1754838645527,1.1163852,800.13,799.6,0.21709566]
[1754838645723,1.1163852,800.11,799.6,0.21709566]
[1754838646027,1.1163852,800.27,799.6,0.21709566]
[1754838646223,1.1163852,800.29,799.6,0.21709566]
[1754838646424,1.1163852,800.32,799.6,0.21709566]
[1754838646625,1.1163852,800.48,799.6,0.21709566]
[1754838647225,1.1163852,800.49,799.6,0.21709566]
[1754838648629,1.1163852,800.55,799.6,0.21709566]
[1754838648824,1.1163852,800.6,799.6,0.21709566]
[1754838649127,1.1163852,800.61,799.6,0.21709566]
[1754838649323,1.1163852,800.6,799.6,0.21709566]
[1754838649828,1.1163852,800.56,799.6,0.21709566]
[1754838651327,1.1163852,800.55,799.6,0.21709566]
[1754838651927,1.1163852,800.56,799.6,0.21709566]
[1754838652324,1.1163852,800.55,799.6,0.21709566]
[1754838652623,1.1163852,800.45,799.6,0.21709566]
[1754838652827,1.1163852,800.46,799.6,0.21709566]
[1754838654125,1.1163852,800.45,799.6,0.21709566]
[1754838654427,1.1163852,800.49,799.6,0.21709566]
[1754838654928,1.1163852,800.47,799.6,0.21709566]
[1754838655430,1.1163852,800.46,799.6,0.21709566]
[1754838656027,1.1163852,800.47,799.6,0.21709566]
[1754838656228,1.1163852,800.48,799.6,0.21709566]
[1754838656528,1.1163852,800.47,799.6,0.21709566]
[1754838657325,1.1163852,800.46,799.6,0.21709566]
[1754838657525,1.1163852,800.48,799.6,0.21709566]
[1754838657824,1.1163852,800.43,799.6,0.21709566]
[1754838658323,1.1163852,800.42,799.6,0.21709566]
[1754838658626,0.9163852,800.42,799.6,0.21709566]
[1754838659026,1.6741998,800.63,799.6,0.21709566]
[1754838659326,1.6741998,800.62,799.6,0.21709566]
[1754838659729,1.6741998,800.71,799.6,0.21709566]
[1754838660029,0.72518965,800.7,799.6,0.21709566]
[1754838660229,1.6741998,800.66,799.6,0.21709566]
[1754838660429,1.6741998,800.78,799.6,0.21709566]
[1754838660729,1.6741998,800.86,799.6,0.21709566]
[1754838660925,0.7250616,800.85,799.6,0.21709566]
[1754838661130,2.3992614,800.84,799.6,0.21709566]
[1754838661324,0.7250616,800.83,799.6,0.21709566]
[1754838661626,0.7250616,800.82,799.6,0.21709566]
[1754838661824,0.7250616,800.81,799.6,0.21709566]
[1754838662030,0.7250616,800.8,799.6,0.21709566]
[1754838662225,0.7250616,800.79,799.6,0.21709566]
[1754838662427,0.7250616,800.78,799.6,0.21709566]
[1754838662630,0.7250616,800.77,799.6,0.21709566]
[1754838662830,1.6741998,800.79,799.6,0.21709566]
[1754838663027,0.72581397,800.78,799.6,0.21709566]
[1754838663230,1.6741998,800.82,799.6,0.21709566]
[1754838663428,0.72616939,800.81,799.6,0.21709566]
[1754838663627,1.6741998,800.97,799.6,0.21709566]
[1754838663827,0.72617926,800.96,799.6,0.21709566]
[1754838664032,0.72617926,800.95,799.6,0.21709566]
[1754838664230,3.8844419,802.35,799.6,0.21709566]
[1754838664231,0.72617926,800.94,799.6,0.21709566]
[1754838664428,0.72617926,800.93,799.6,0.21709566]
[1754838664628,0.72617926,800.92,799.6,0.21709566]
[1754838664829,0.72617926,800.91,799.6,0.21709566]
[1754838665031,2.40037906,800.9,799.6,0.21709566]
[1754838665230,1.6741998,800.89,799.6,0.21709566]
[1754838665632,1.6741998,800.9,799.6,0.21709566]
[1754838665831,1.6741998,800.88,799.6,0.21709566]
[1754838666036,1.6741998,800.89,799.6,0.21709566]
[1754838666233,1.6741998,800.86,799.6,0.21709566]
[1754838666436,1.6741998,800.82,799.6,0.21709566]
[1754838666833,1.6741998,800.83,799.6,0.21709566]
[1754838667434,0.83303213,800.43,799.6,0.21709566]
[1754838668438,0.83303213,800.42,799.6,0.21709566]
[1754838668636,0.83303213,800.32,799.6,0.21709566]
[1754838668840,0.83303213,800.3,799.6,0.21709566]
[1754838669036,0.83303213,800.31,799.6,0.21709566]
[1754838669237,0.83303213,800.3,799.6,0.21709566]
[1754838669538,0.83303213,800.31,799.6,0.21709566]
[1754838669842,0.83303213,800.33,799.6,0.21709566]
[1754838670540,0.83303213,800.34,799.6,0.21709566]
[1754838671339,0.83303213,800.33,799.6,0.21709566]
[1754838671535,0.83303213,800.32,799.6,0.21709566]
[1754838672240,0.83303213,800.31,799.6,0.21709566]
[1754838672538,0.83303213,800.27,799.6,0.21709566]
[1754838672835,0.83303213,800.28,799.6,0.21709566]
[1754838673236,0.83303213,800.27,799.6,0.21709566]
[1754838673637,0.63303213,800.27,799.6,0.21709566]
[1754838674138,1.6741998,800.68,799.6,0.21709566]
[1754838674442,1.6741998,800.67,799.6,0.21709566]
[1754838675047,1.6741998,800.8,799.6,0.21709566]
[1754838675242,1.6741998,800.7,799.6,0.21709566]
[1754838675939,1.6741998,800.71,799.6,0.21709566]
[1754838676537,1.6741998,800.7,799.6,0.21709566]
[1754838677841,1.6741998,800.74,799.6,0.21709566]
[1754838678041,1.6741998,800.77,799.6,0.21709566]
[1754838678544,1.6741998,800.76,799.6,0.21709566]
[1754838679141,1.6741998,800.77,799.6,0.21709566]
[1754838679843,1.6741998,800.76,799.6,0.21709566]
[1754838680244,1.6741998,800.75,799.6,0.21709566]
[1754838680742,1.6741998,800.68,799.6,0.21709566]
[1754838680940,1.6741998,800.69,799.6,0.21709566]
[1754838681144,1.6741998,800.7,799.6,0.21709566]
[1754838681640,1.6741998,800.69,799.6,0.21709566]
[1754838681840,1.6741998,800.7,799.6,0.21709566]
[1754838682044,1.6741998,800.68,799.6,0.21709566]
[1754838682443,1.6741998,800.62,799.6,0.21709566]
[1754838682641,2.8022445,801.56,799.6,0.21709566]
[1754838682642,1.6741998,800.55,799.6,0.21709566]
[1754838682843,1.6741998,800.57,799.6,0.21709566]
[1754838683044,1.6741998,800.5,799.6,0.21709566]
[1754838683646,1.6741998,800.51,799.6,0.21709566]
[1754838684151,1.6741998,800.53,799.6,0.21709566]
[1754838685546,1.6741998,800.52,799.6,0.21709566]
[1754838685750,1.6741998,800.54,799.6,0.21709566]
[1754838685950,1.6741998,800.53,799.6,0.21709566]
[1754838687147,1.6741998,800.55,799.6,0.21709566]
[1754838687352,1.6741998,800.56,799.6,0.21709566]
[1754838687549,1.6741998,800.57,799.6,0.21709566]
[1754838687751,1.6741998,800.56,799.6,0.21709566]
[1754838687948,1.6741998,800.53,799.6,0.21709566]
[1754838688449,1.6741998,800.54,799.6,0.21709566]
[1754838688952,1.1152301,800.36,799.6,0.21709566]
[1754838689153,1.1152301,800.35,799.6,0.21709566]
[1754838689649,1.1152301,800.36,799.6,0.21709566]
[1754838690548,1.1152301,800.35,799.6,0.21709566]
[1754838690753,1.1152301,800.33,799.6,0.21709566]
[1754838691249,1.1152301,800.34,799.6,0.21709566]
[1754838691953,1.1152301,800.33,799.6,0.21709566]
[1754838692150,1.1152301,800.35,799.6,0.21709566]
[1754838692453,1.1152301,800.32,799.6,0.21709566]
[1754838692749,1.1152301,800.34,799.6,0.21709566]
[1754838694050,1.1152301,800.33,799.6,0.21709566]
[1754838694553,1.1152301,800.32,799.6,0.21709566]
[1754838694853,1.1152301,800.43,799.6,0.21709566]
[1754838695050,1.1152301,800.42,799.6,0.21709566]
[1754838695255,1.1152301,800.4,799.6,0.21709566]
[1754838695548,1.6741998,800.64,799.6,0.21709566]
[1754838695549,1.1152301,800.41,799.6,0.21709566]
[1754838695951,1.1152301,800.42,799.6,0.21709566]
[1754838697251,1.1152301,800.41,799.6,0.21709566]
[1754838697655,1.1152301,800.42,799.6,0.21709566]
[1754838698855,1.1152301,800.41,799.6,0.21709566]
[1754838699152,1.1152301,800.4,799.6,0.21709566]
[1754838699351,1.1152301,800.39,799.6,0.21709566]
[1754838699951,1.1152301,800.38,799.6,0.21709566]
[1754838700156,1.1152301,800.27,799.6,0.21709566]
[1754838700455,1.1152301,800.26,799.6,0.21709566]
[1754838701153,1.6741998,800.42,799.6,0.21709566]
[1754838703056,1.6741998,800.39,799.6,0.21709566]
[1754838703255,1.6741998,800.38,799.6,0.21709566]
[1754838704658,1.6741998,800.3,799.6,0.21709566]
[1754838704957,1.6741998,800.29,799.6,0.21709566]
[1754838705356,1.6741998,800.27,799.6,0.21709566]
[1754838705855,1.6741998,800.36,799.6,0.21709566]
[1754838706055,1.6741998,800.43,799.6,0.21709566]
[1754838706257,1.6741998,800.42,799.6,0.21709566]
[1754838707159,1.6741998,800.41,799.6,0.21709566]
[1754838709061,1.6741998,800.42,799.6,0.21709566]
[1754838709262,1.6741998,800.41,799.6,0.21709566]
[1754838712665,1.6741998,800.46,799.6,0.21709566]
[1754838713766,1.6741998,800.44,799.6,0.21709566]
[1754838714264,1.6741998,800.46,799.6,0.21709566]
[1754838714468,1.6741998,800.47,799.6,0.21709566]
[1754838715168,1.6741998,800.5,799.6,0.21709566]
[1754838715769,1.6741998,800.47,799.6,0.21709566]
[1754838717772,1.6741998,800.5,799.6,0.21709566]
[1754838719075,1.6741998,800.49,799.6,0.21709566]
[1754838720377,1.6741998,800.51,799.6,0.21709566]
[1754838720676,1.6741998,800.52,799.6,0.21709566]
[1754838721077,1.6741998,800.53,799.6,0.21709566]
[1754838721777,1.6741998,800.54,799.65,0.321]
[1754838721975,1.6741998,800.54,799.6,0.21709566]
[1754838723480,1.6741998,800.53,799.6,0.21709566]
[1754838724682,1.4741998,800.53,799.6,0.21709566]
[1754838725879,2.8022445,801.13,799.6,0.21709566]
[1754838726180,0.73479201,801.12,799.6,0.21709566]
[1754838726378,0.73479201,801.11,799.6,0.21709566]
[1754838726581,0.73479201,801.1,799.6,0.21709566]
[1754838726781,0.73479201,801.09,799.6,0.21709566]
[1754838726976,0.73479201,801.08,799.6,0.21709566]
[1754838727177,0.73479201,801.07,799.6,0.21709566]
[1754838727382,0.73479201,801.06,799.6,0.21709566]
[1754838727679,0.73479201,801.05,799.6,0.21709566]
[1754838727880,0.73479201,801.04,799.6,0.21709566]
[1754838728079,0.73479201,801.03,799.6,0.21709566]
[1754838728279,0.73479201,801.02,799.6,0.21709566]
[1754838728480,0.73479201,801.01,799.6,0.21709566]
[1754838728680,0.73479201,801.0,799.6,0.21709566]
[1754838728883,0.73479201,800.99,799.6,0.21709566]
[1754838729183,0.73479201,800.98,799.6,0.21709566]
[1754838729383,0.73479201,800.97,799.6,0.21709566]
[1754838729584,2.8022445,801.35,799.6,0.21709566]
[1754838729585,0.73479201,800.96,799.6,0.21709566]
[1754838729884,3.8844419,801.69,799.6,0.21709566]
[1754838729885,0.73479201,800.95,799.6,0.21709566]
[1754838730084,0.73479201,800.94,799.6,0.21709566]
[1754838730285,0.73479201,800.93,799.6,0.21709566]
[1754838730485,0.73479201,800.92,799.6,0.21709566]
[1754838730782,0.73480877,800.91,799.6,0.21709566]
[1754838730986,0.73480877,800.9,799.6,0.21709566]
[1754838731182,1.1186671,800.19,799.6,0.21709566]
[1754838731883,1.1186671,800.2,799.6,0.21709566]
[1754838733088,1.1186671,800.19,799.6,0.21709566]
[1754838733383,1.1186671,800.2,799.6,0.21709566]
[1754838733588,0.83903664,800.04,799.6,0.21709566]
[1754838734088,1.1186671,800.2,799.37,0.83699636]
[1754838736288,1.1186671,800.17,799.38,0.83699636]
[1754838736588,1.1186671,800.18,799.38,0.83699636]
[1754838737084,1.1186671,800.18,799.57,0.21721694]
[1754838737288,1.1186671,800.13,799.57,0.21721694]
[1754838737785,1.1186671,800.14,799.57,0.21721694]
[1754838739389,1.1186671,800.13,799.57,0.21721694]
[1754838739888,1.1186671,800.15,799.57,0.21721694]
[1754838741590,1.1186671,800.14,799.57,0.21721694]
[1754838742892,0.9186671,800.14,799.57,0.21721694]
[1754838743097,0.9186671,800.19,799.57,0.21721694]
[1754838743496,2.8022445,801.01,799.57,0.21721694]
[1754838743792,0.73536444,801.0,799.57,0.21721694]
[1754838743997,0.73536444,800.99,799.57,0.21721694]
[1754838744191,0.73536444,800.98,799.57,0.21721694]
[1754838744396,0.73536444,800.97,799.57,0.21721694]
[1754838744596,0.73536444,800.96,799.57,0.21721694]
[1754838744793,1.6781456,800.38,799.57,0.21721694]
[1754838745297,1.6781456,800.43,799.57,0.21721694]
[1754838745497,1.6781456,800.44,799.57,0.21721694]
[1754838745796,1.6781456,800.45,799.57,0.21721694]
[1754838746197,1.6781456,800.44,799.57,0.21721694]
[1754838746494,1.6781456,800.47,799.57,0.21721694]
[1754838746997,1.6781456,800.46,799.57,0.21721694]
[1754838747293,1.63470547,800.46,799.57,0.21721694]
[1754838747497,2.8022445,801.17,799.57,0.21721694]
[1754838747696,2.8022445,801.15,799.57,0.21721694]
[1754838747896,0.73536785,801.14,799.57,0.21721694]
[1754838748094,0.73536785,801.13,799.57,0.21721694]
[1754838748298,0.73536785,801.12,799.57,0.21721694]
[1754838748496,0.73536785,801.11,799.57,0.21721694]
[1754838748695,2.8022445,801.14,799.57,0.21721694]
[1754838748696,0.73536785,801.1,799.57,0.21721694]
[1754838748894,0.73536785,801.09,799.57,0.21721694]
[1754838749097,0.73536785,801.08,799.57,0.21721694]
[1754838749295,0.73536785,801.07,799.57,0.21721694]
[1754838749499,0.73536785,801.06,799.57,0.21721694]
[1754838749698,2.8022445,801.41,799.57,0.21721694]
[1754838749699,0.73536785,801.05,799.6,0.28]
[1754838749896,0.73536785,801.04,799.57,0.21721694]
[1754838750101,0.73536785,801.03,799.57,0.21721694]
[1754838750302,0.73536785,801.02,799.57,0.21721694]
[1754838750500,0.73536785,801.01,799.57,0.21721694]
[1754838750704,0.73536785,801.0,799.57,0.21721694]
[1754838751000,0.73536785,800.99,799.57,0.21721694]
[1754838751203,2.8022445,801.37,799.57,0.21721694]
[1754838751204,0.73536785,800.98,799.57,0.21721694]
[1754838751405,0.73536785,800.97,799.57,0.21721694]
[1754838751703,0.73536785,800.96,799.57,0.21721694]
[1754838751904,0.73536785,800.95,799.57,0.21721694]
[1754838752105,0.73536785,800.94,799.57,0.21721694]
[1754838752301,0.73536785,800.93,799.57,0.21721694]
[1754838752605,0.73519685,800.92,799.57,0.21721694]
[1754838752801,0.73519685,800.91,799.57,0.21721694]
[1754838753001,0.73519685,800.9,799.57,0.21721694]
[1754838753206,2.8022445,800.96,799.57,0.21721694]
[1754838753402,0.73517906,800.95,799.57,0.21721694]
[1754838753606,0.73517906,800.94,799.57,0.21721694]
[1754838753906,0.73517906,800.93,799.57,0.21721694]
[1754838754100,0.73517906,800.92,799.57,0.21721694]
[1754838754305,0.73517906,800.91,799.57,0.21721694]
[1754838754505,0.73517906,800.9,799.57,0.21721694]
[1754838754705,2.8022445,800.99,799.59,0.28]
[1754838754904,0.73514764,800.98,799.59,0.28]
[1754838755106,0.73514764,800.97,799.57,0.21721694]
[1754838755304,0.73514764,800.96,799.57,0.21721694]
[1754838755504,0.73514764,800.95,799.57,0.21721694]
[1754838755707,0.73514764,800.94,799.57,0.21721694]
[1754838755903,0.73514764,800.93,799.57,0.21721694]
[1754838756108,2.8022445,801.03,799.57,0.21721694]
[1754838756308,0.73514665,801.02,799.57,0.21721694]
[1754838756506,0.73514665,801.01,799.57,0.21721694]
[1754838756710,0.73514665,801.0,799.57,0.21721694]
[1754838756911,0.73514665,800.99,799.57,0.21721694]
[1754838757107,0.73514665,800.98,799.57,0.21721694]
[1754838757311,0.73514665,800.97,799.57,0.21721694]
[1754838757512,0.73514665,800.96,799.57,0.21721694]
[1754838757713,0.73514665,800.95,799.57,0.21721694]
[1754838757913,0.73514665,800.94,799.57,0.21721694]
[1754838758221,2.8022445,801.4,799.57,0.21721694]
[1754838758411,0.73518516,801.39,799.57,0.21721694]
[1754838758607,0.73518516,801.38,799.57,0.21721694]
[1754838758808,0.73518516,801.37,799.57,0.21721694]
[1754838759009,0.73518516,801.36,799.57,0.21721694]
[1754838759213,0.73518516,801.35,799.57,0.21721694]
[1754838759410,0.73518516,801.34,799.57,0.21721694]
[1754838759711,0.73518516,801.33,799.57,0.21721694]
[1754838759909,0.73518516,801.32,799.57,0.21721694]
[1754838760210,0.73518516,801.31,799.57,0.21721694]
[1754838760414,0.73518516,801.3,799.57,0.21721694]
[1754838760610,0.73518516,801.29,799.57,0.21721694]
[1754838760809,0.73518516,801.28,799.57,0.21721694]
[1754838761010,2.8022445,801.38,799.57,0.21721694]
[1754838761011,0.73518516,801.27,799.57,0.21721694]
[1754838761208,0.73518516,801.26,799.57,0.21721694]
[1754838761414,0.73518516,801.25,799.57,0.21721694]
[1754838761710,0.73518516,801.24,799.57,0.21721694]
[1754838761914,0.73518516,801.23,799.57,0.21721694]
[1754838762108,0.73518516,801.22,799.57,0.21721694]
[1754838762313,0.73518516,801.21,799.57,0.21721694]
[1754838762512,0.73518516,801.2,799.57,0.21721694]
[1754838762710,0.73518516,801.19,799.57,0.21721694]
[1754838762914,0.73518516,801.18,799.57,0.21721694]
[1754838763114,0.73518516,801.17,799.57,0.21721694]
[1754838763312,0.73518516,801.16,799.57,0.21721694]
[1754838763512,0.73518516,801.15,799.57,0.21721694]
[1754838763711,0.73518516,801.14,799.57,0.21721694]
[1754838763915,0.73518516,801.13,799.57,0.21721694]
[1754838764112,0.73518516,801.12,799.57,0.21721694]
[1754838764317,0.73518516,801.11,799.57,0.21721694]
[1754838764613,0.73518516,801.1,799.57,0.21721694]
[1754838764816,0.73518516,801.09,799.57,0.21721694]
[1754838765016,0.73518516,801.08,799.57,0.21721694]
[1754838765217,0.73518516,801.07,799.57,0.21721694]
[1754838765416,0.73518516,801.06,799.57,0.21721694]
[1754838765617,0.73518516,801.05,799.57,0.21721694]
[1754838765813,0.73518516,801.04,799.57,0.21721694]
[1754838766116,0.73518516,801.03,799.57,0.21721694]
[1754838766320,0.73518516,801.02,799.57,0.21721694]
[1754838766613,0.73518516,801.01,799.57,0.21721694]
[1754838766914,2.8022445,801.83,799.57,0.21721694]
[1754838767117,0.73452155,801.82,799.57,0.21721694]
[1754838767314,1.6778557,800.86,799.57,0.21721694]
[1754838768019,1.6778557,800.79,799.57,0.21721694]
[1754838771524,1.6778557,800.75,799.57,0.21721694]
[1754838772220,1.6778557,800.66,799.67,0.33]
[1754838772424,1.6778557,800.68,799.69,0.27]
[1754838772721,1.6778557,800.62,799.74,0.5]
[1754838773122,0.9182661,800.47,799.74,0.5]
[1754838773326,1.6778557,800.63,799.74,0.5]
[1754838774235,3.8844419,801.57,799.74,0.5]
[1754838774236,1.6778557,800.64,799.74,0.5]
[1754838774735,1.6778557,800.62,799.74,0.5]
[1754838775733,1.6778557,800.61,799.74,0.5]
[1754838777029,2.8022445,801.2,799.74,0.5]
[1754838777030,1.6778557,800.62,799.74,0.5]
[1754838777231,1.6778557,800.63,799.74,0.5]
[1754838778033,1.6778557,800.61,799.74,0.5]
[1754838779835,1.6778557,800.93,799.74,0.5]
[1754838780239,1.6778557,801.05,799.57,0.21721694]
[1754838780437,1.6778557,800.99,799.57,0.21721694]
[1754838781538,1.6778557,800.9,799.57,0.21721694]
[1754838781738,1.6778557,800.85,799.57,0.21721694]
[1754838782537,1.6778557,800.86,799.57,0.21721694]
[1754838782734,1.6778557,800.89,799.57,0.21721694]
[1754838783139,1.6778557,800.94,799.57,0.21721694]
[1754838783337,1.6778557,800.91,799.57,0.21721694]
[1754838784637,1.6778557,800.87,799.57,0.21721694]
[1754838785334,1.6778557,800.82,799.57,0.21721694]
[1754838785835,1.6778557,800.72,799.57,0.21721694]
[1754838786133,1.6778557,800.73,799.57,0.21721694]